bitfinex/quotes_SOLUSD_20250928
["timestamp","ask_amount","ask_price","bid_price","bid_amount"]
[1759064902084,1e-08,199.31,199.3,84.19315547]
[1759064902880,1e-08,199.31,199.3,45.29315547]
[1759064903073,1e-08,199.31,199.3,84.19315547]
[1759064904575,1e-08,199.31,199.3,45.29315547]
[1759064904778,1e-08,199.31,199.3,84.19315547]
[1759064906375,1e-08,199.31,199.3,45.29315547]
[1759064906694,1e-08,199.31,199.3,84.19315547]
[1759064906995,1e-08,199.31,199.3,45.29315547]
[1759064907170,1e-08,199.31,199.3,84.19315547]
[1759064907360,1e-08,199.31,199.3,45.29315547]
[1759064907680,1e-08,199.31,199.3,84.19315547]
[1759064908585,1e-08,199.31,199.3,31.01756146]
[1759064908794,1e-08,199.31,199.3,69.91756146]
[1759064909093,1e-08,199.31,199.3,38.9]
[1759064909490,1e-08,199.31,199.3,43.91756146]
[1759064909676,0.68000001,199.31,199.3,38.9]
[1759064909876,0.68000001,199.31,199.29,31.01780473]
[1759064910190,0.68000001,199.31,199.3,38.9]
[1759064910774,1e-08,199.31,199.3,38.9]
[1759064911205,1e-08,199.31,199.29,31.01780473]
[1759064911397,1e-08,199.31,199.3,38.9]
[1759064912088,1e-08,199.31,199.3,43.91756146]
[1759064913187,1e-08,199.31,199.3,44.61756146]
[1759064913710,1e-08,199.31,199.3,43.91756146]
[1759064916104,1e-08,199.31,199.3,44.61756146]
[1759064922101,1e-08,199.31,199.3,5.71756146]
[1759064922301,1e-08,199.31,199.3,19.31315547]
[1759064922600,1e-08,199.31,199.3,58.21315547]
[1759064923007,1e-08,199.31,199.3,19.31315547]
[1759064923386,1e-08,199.31,199.3,58.21315547]
[1759064925602,1e-08,199.31,199.3,19.31315547]
[1759064926102,1e-08,199.31,199.3,58.21315547]
[1759064926490,1e-08,199.31,199.3,73.3033192]
[1759064928411,1e-08,199.31,199.3,34.4033192]
[1759064928619,1e-08,199.31,199.3,73.2833192]
[1759064929518,1e-08,199.31,199.3,34.4033192]
[1759064929702,1e-08,199.31,199.3,73.2833192]
[1759064930603,1e-08,199.31,199.3,34.4033192]
[1759064931314,1e-08,199.31,199.3,73.2833192]
[1759064933302,1e-08,199.31,199.3,34.4033192]
[1759064933521,1e-08,199.31,199.3,73.2833192]
[1759064941125,1e-08,199.31,199.3,34.4033192]
[1759064941331,1e-08,199.31,199.3,73.2833192]
[1759064941633,1e-08,199.31,199.3,88.3733192]
[1759064941813,1e-08,199.31,199.3,34.4033192]
[1759064942011,1e-08,199.31,199.3,73.2833192]
[1759064942309,1e-08,199.31,199.3,34.4033192]
[1759064942523,1e-08,199.31,199.3,73.2833192]
[1759064943513,1e-08,199.31,199.3,73.2633192]
[1759064943713,1e-08,199.31,199.3,34.4033192]
[1759064943929,1e-08,199.31,199.3,73.2633192]
[1759064944115,1e-08,199.31,199.3,34.4033192]
[1759064944318,1e-08,199.31,199.3,73.2633192]
[1759064944528,1e-08,199.31,199.3,34.4033192]
[1759064944725,1e-08,199.31,199.3,73.2633192]
[1759064946334,1e-08,199.31,199.3,34.4033192]
[1759064946524,1e-08,199.31,199.3,73.2633192]
[1759064947634,1e-08,199.31,199.3,34.4033192]
[1759064947817,1e-08,199.31,199.3,73.2633192]
[1759064948619,1e-08,199.31,199.3,34.4033192]
[1759064948828,1e-08,199.31,199.3,49.4933192]
[1759064949337,1e-08,199.31,199.3,88.3533192]
[1759064949532,0.86,199.38,199.34,39.59559401]
[1759064949718,0.2,199.38,199.37,39.59559401]
[1759064949917,0.2,199.38,199.37,78.45559401]
[1759064950214,0.86,199.38,199.37,41.6072111]
[1759064950415,0.86,199.38,199.37,46.62301086]
[1759064951039,0.86,199.38,199.37,85.48301086]
[1759064951518,0.86,199.38,199.37,46.62301086]
[1759064951724,0.86,199.38,199.37,85.48301086]
[1759064952335,0.2,199.38,199.37,46.62301086]
[1759064952532,0.2,199.38,199.37,85.48301086]
[1759064952930,0.2,199.38,199.37,47.34301086]
[1759064953730,1e-08,199.38,199.37,47.34301086]
[1759064953923,1e-08,199.38,199.37,86.20301086]
[1759064955336,1e-08,199.38,199.37,47.34301086]
[1759064955635,1e-08,199.38,199.37,86.20301086]
[1759064956430,1e-08,199.38,199.37,47.34301086]
[1759064956943,1e-08,199.38,199.37,86.20301086]
[1759064959744,1e-08,199.38,199.37,85.46301086]
[1759064959927,0.67000001,199.38,199.37,46.62301086]
[1759064960242,0.67000001,199.38,199.37,85.46301086]
[1759064961630,1e-08,199.38,199.37,85.46301086]
[1759064967324,0.16000001,199.4,199.37,85.46301086]
[1759064967548,0.16000001,199.4,199.38,13.59559401]
[1759064967740,0.16000001,199.4,199.39,38.84]
[1759064967935,0.2,199.45,199.42,26.0]
[1759064968138,0.2,199.45,199.43,38.84]
[1759064968647,0.2,199.45,199.44,2.01131364]
[1759064969555,0.65,199.45,199.44,2.01131364]
[1759064971638,0.65,199.45,199.44,40.85131364]
[1759064971834,0.65,199.45,199.44,2.01131364]
[1759064972033,0.65,199.45,199.44,40.85131364]
[1759064972645,0.2,199.45,199.44,2.01131364]
[1759064973153,0.2,199.45,199.44,40.83131364]
[1759064973561,0.2,199.45,199.44,7.02535295]
[1759064973934,0.2,199.45,199.44,45.84535295]
[1759064975642,0.2,199.45,199.44,40.83131364]
[1759064977247,0.2,199.45,199.44,45.84535295]
[1759064977649,0.2,199.45,199.44,46.51535295]
[1759064978044,0.2,199.45,199.44,45.84535295]
[1759064978837,0.2,199.45,199.44,60.11094696]
[1759064980258,0.2,199.45,199.44,59.44094696]
[1759064984463,0.2,199.45,199.44,60.11094696]
[1759064989063,0.2,199.45,199.44,60.09094696]
[1759064989266,0.2,199.45,199.44,21.29094696]
[1759064989462,0.2,199.45,199.44,60.09094696]
[1759064992261,0.2,199.45,199.44,21.29094696]
[1759064992566,0.2,199.45,199.44,60.09094696]
[1759064993761,0.2,199.45,199.44,21.29094696]
[1759064994066,0.2,199.45,199.44,60.09094696]
[1759064996761,0.2,199.45,199.44,21.29094696]
[1759064997069,0.2,199.45,199.44,60.09094696]
[1759064998266,0.2,199.45,199.44,21.29094696]
[1759064998472,0.2,199.45,199.44,60.09094696]
[1759064998657,0.2,199.45,199.44,21.29094696]
[1759064998850,0.2,199.45,199.44,60.09094696]
[1759064999850,0.2,199.45,199.44,21.29094696]
[1759065000173,0.2,199.45,199.44,60.09094696]
[1759065000366,0.2,199.45,199.44,21.29094696]
[1759065000552,0.2,199.45,199.44,60.09094696]
[1759065000755,0.2,199.45,199.44,21.29094696]
[1759065000969,0.2,199.45,199.44,60.09094696]
[1759065001464,0.2,199.45,199.44,86.09094696]
[1759065001645,0.2,199.45,199.44,47.29094696]
[1759065001851,0.2,199.45,199.44,86.09094696]
[1759065002051,0.2,199.45,199.44,47.29094696]
[1759065002267,0.2,199.45,199.44,86.09094696]
[1759065003262,0.2,199.45,199.44,47.29094696]
[1759065003466,0.2,199.45,199.44,60.07094696]
[1759065003771,0.2,199.45,199.44,21.29094696]
[1759065004074,0.2,199.45,199.44,60.07094696]
[1759065005556,0.2,199.45,199.44,21.29094696]
[1759065005751,0.2,199.45,199.44,60.07094696]
[1759065005964,0.2,199.45,199.44,21.29094696]
[1759065006151,0.2,199.45,199.44,60.07094696]
[1759065007048,0.2,199.45,199.44,21.29094696]
[1759065007467,0.2,199.45,199.44,60.07094696]
[1759065009178,0.2,199.45,199.44,21.29094696]
[1759065009555,0.2,199.45,199.44,60.07094696]
[1759065011983,0.2,199.45,199.44,59.40094696]
[1759065012286,0.2,199.45,199.44,85.40094696]
[1759065013276,0.2,199.45,199.44,47.33094696]
[1759065013655,0.2,199.45,199.44,21.33094696]
[1759065013982,0.2,199.45,199.44,60.11094696]
[1759065015778,0.2,199.45,199.44,60.09094696]
[1759065017862,0.2,199.45,199.44,21.33094696]
[1759065018165,0.2,199.45,199.44,60.09094696]
[1759065021293,0.2,199.45,199.44,21.33094696]
[1759065021500,0.2,199.45,199.44,60.09094696]
[1759065021796,1e-08,199.45,199.44,60.09094696]
[1759065025488,1e-08,199.45,199.44,21.33094696]
[1759065025693,1e-08,199.45,199.44,60.09094696]
[1759065029801,1e-08,199.45,199.44,47.33094696]
[1759065029973,1e-08,199.45,199.44,21.33094696]
[1759065030494,1e-08,199.45,199.44,60.09094696]
[1759065032178,0.2,199.46,199.44,60.09094696]
[1759065032179,1e-08,199.46,199.45,13.59559401]
[1759065032379,1e-08,199.46,199.45,14.27559401]
[1759065032778,1e-08,199.46,199.45,55.0260989]
[1759065032980,1e-08,199.46,199.45,16.2860989]
[1759065033189,1e-08,199.46,199.45,55.0260989]
[1759065033486,1e-08,199.46,199.45,16.2860989]
[1759065033700,1e-08,199.46,199.45,55.0260989]
[1759065034000,1e-08,199.46,199.45,60.03988681]
[1759065036392,1e-08,199.46,199.45,21.29988681]
[1759065036597,1e-08,199.46,199.45,60.03988681]
[1759065039797,0.2,199.51,199.48,39.59559401]
[1759065040001,0.2,199.51,199.49,38.74]
[1759065040197,0.2,199.51,199.49,14.27559401]
[1759065040505,0.2,199.51,199.5,40.75020177]
[1759065041415,0.2,199.51,199.5,45.76273309]
[1759065041901,0.2,199.51,199.5,46.44273309]
[1759065042082,1e-08,199.51,199.5,21.2983271]
[1759065042282,1e-08,199.51,199.5,60.0383271]
[1759065043182,1e-08,199.51,199.5,21.2983271]
[1759065043384,1e-08,199.51,199.5,20.6183271]
[1759065043604,1e-08,199.51,199.5,46.6183271]
[1759065043803,1e-08,199.51,199.5,59.3583271]
[1759065044003,1e-08,199.51,199.5,60.0183271]
[1759065044514,1e-08,199.51,199.5,20.6183271]
[1759065044710,0.45000001,199.51,199.5,20.6183271]
[1759065045188,0.45000001,199.51,199.5,59.3383271]
[1759065045792,0.45000001,199.51,199.5,33.02273309]
[1759065045998,0.45000001,199.51,199.5,45.74273309]
[1759065046598,0.45000001,199.51,199.5,40.73020177]
[1759065046806,0.45000001,199.51,199.5,2.01020177]
[1759065047106,0.45000001,199.51,199.46,13.59559401]
[1759065047310,0.45,199.5,199.47,38.72]
[1759065047606,0.45,199.49,199.47,13.59559401]
[1759065047809,0.45,199.48,199.47,13.59559401]
[1759065048000,1e-08,199.51,199.48,13.59559401]
[1759065048187,1e-08,199.51,199.5,26.0]
[1759065048383,1e-08,199.51,199.5,39.59559401]
[1759065048599,1e-08,199.51,199.5,78.31559401]
[1759065049311,1e-08,199.51,199.5,83.32812533]
[1759065049521,1e-08,199.51,199.5,84.00812533]
[1759065050006,1e-08,199.51,199.5,99.08539635]
[1759065050902,1e-08,199.51,199.5,60.36539635]
[1759065051612,1e-08,199.51,199.5,99.08539635]
[1759065054311,1e-08,199.51,199.5,60.36539635]
[1759065054516,1e-08,199.51,199.5,99.08539635]
[1759065054897,1e-08,199.51,199.5,60.36539635]
[1759065055098,1e-08,199.51,199.5,99.08539635]
[1759065055600,1e-08,199.51,199.5,60.36539635]
[1759065056012,1e-08,199.51,199.5,99.08539635]
[1759065056318,1e-08,199.51,199.5,60.36539635]
[1759065056804,1e-08,199.51,199.5,99.08539635]
[1759065057696,1e-08,199.51,199.5,60.36539635]
[1759065057897,1e-08,199.51,199.5,99.08539635]
[1759065060626,1e-08,199.51,199.5,60.36539635]
[1759065060811,1e-08,199.51,199.5,99.08539635]
[1759065061531,0.45000001,199.51,199.5,59.68539635]
[1759065061707,0.45000001,199.51,199.5,72.40539635]
[1759065062108,1e-08,199.51,199.5,57.32812533]
[1759065062414,1e-08,199.51,199.5,18.60812533]
[1759065062620,1e-08,199.51,199.5,57.32812533]
[1759065064620,1e-08,199.51,199.5,19.31812533]
[1759065064926,1e-08,199.51,199.5,58.03812533]
[1759065065501,1e-08,199.51,199.5,19.31812533]
[1759065065726,1e-08,199.51,199.5,58.03812533]
[1759065065917,1e-08,199.51,199.5,19.31812533]
[1759065066125,1e-08,199.51,199.5,34.39312344]
[1759065066633,1e-08,199.51,199.5,73.11312344]
[1759065067008,1e-08,199.51,199.5,34.39312344]
[1759065067207,1e-08,199.51,199.5,73.09312344]
[1759065068739,1e-08,199.51,199.5,34.39312344]
[1759065069108,1e-08,199.51,199.5,73.09312344]
[1759065077533,1e-08,199.51,199.5,34.39312344]
[1759065078030,1e-08,199.51,199.5,73.09312344]
[1759065078824,1e-08,199.51,199.5,34.39312344]
[1759065079046,1e-08,199.51,199.5,73.09312344]
[1759065079442,1e-08,199.51,199.5,153.59312344]
[1759065082356,1e-08,199.51,199.5,114.18312344]
[1759065082735,1e-08,199.51,199.5,152.88312344]
[1759065083138,1e-08,199.51,199.5,153.56312344]
[1759065083740,1e-08,199.51,199.5,114.18312344]
[1759065084050,1e-08,199.51,199.5,152.86312344]
[1759065084251,1e-08,199.51,199.5,153.54312344]
[1759065085350,1e-08,199.51,199.5,73.04312344]
[1759065086962,1e-08,199.51,199.5,34.36312344]
[1759065087259,1e-08,199.51,199.5,73.04312344]
[1759065090240,1e-08,199.51,199.5,34.36312344]
[1759065090443,1e-08,199.51,199.5,73.04312344]
[1759065090648,1e-08,199.51,199.5,34.36312344]
[1759065090850,1e-08,199.51,199.5,73.04312344]
[1759065092268,1e-08,199.51,199.5,34.36312344]
[1759065093258,1e-08,199.51,199.5,73.04312344]
[1759065094170,1e-08,199.51,199.5,34.36312344]
[1759065094371,1e-08,199.51,199.5,73.04312344]
[1759065095255,1e-08,199.51,199.5,34.36312344]
[1759065095570,1e-08,199.51,199.5,73.04312344]
[1759065095867,1e-08,199.51,199.5,34.36312344]
[1759065096370,1e-08,199.51,199.5,73.04312344]
[1759065098566,0.2,199.58,199.54,13.59559401]
[1759065098750,0.65,199.58,199.54,13.59559401]
[1759065099064,0.45,199.57,199.55,38.68]
[1759065099272,0.45,199.57,199.56,64.68]
[1759065099444,0.45,199.57,199.56,31.01102425]
[1759065100170,0.45,199.57,199.56,69.69102425]
[1759065102369,0.2,199.58,199.57,18.60636717]
[1759065102572,0.2,199.58,199.57,57.28636717]
[1759065102789,0.2,199.58,199.57,18.60636717]
[1759065102970,0.2,199.58,199.57,57.28636717]
[1759065103274,0.65,199.58,199.57,57.28636717]
[1759065104872,0.2,199.58,199.57,57.28636717]
[1759065106678,0.2,199.58,199.57,19.28636717]
[1759065106880,0.2,199.65,199.57,95.52716588]
[1759065107064,0.2,199.65,199.61,13.59559401]
[1759065107257,1e-08,199.65,199.64,39.59559401]
[1759065107588,1e-08,199.65,199.64,46.96292659]
[1759065107770,1e-08,199.65,199.64,47.64292659]
[1759065107955,1e-08,199.65,199.64,49.6515133]
[1759065108158,1e-08,199.65,199.64,88.7515133]
[1759065108459,1e-08,199.65,199.64,81.38418072]
[1759065108785,1e-08,199.65,199.64,47.29319694]
[1759065108964,1e-08,199.65,199.64,86.39319694]
[1759065110355,1e-08,199.65,199.64,47.29319694]
[1759065110555,1e-08,199.65,199.64,46.61319694]
[1759065110770,0.45000001,199.65,199.64,57.70461023]
[1759065110978,0.45000001,199.65,199.64,18.60461023]
[1759065111176,0.45000001,199.65,199.64,57.70461023]
[1759065111496,0.45000001,199.65,199.64,5.00901622]
[1759065111657,0.45000001,199.65,199.64,44.10901622]
[1759065112357,1e-08,199.65,199.64,5.00901622]
[1759065112555,0.45000001,199.65,199.64,44.10901622]
[1759065112783,1e-08,199.65,199.64,44.10901622]
[1759065112993,1e-08,199.65,199.64,5.00901622]
[1759065113187,1e-08,199.65,199.64,44.08901622]
[1759065113492,1e-08,199.65,199.64,5.00901622]
[1759065113691,1e-08,199.65,199.64,44.08901622]
[1759065113898,1e-08,199.65,199.64,5.00901622]
[1759065114197,1e-08,199.65,199.64,44.08901622]
[1759065114900,1e-08,199.65,199.64,5.00901622]
[1759065115080,1e-08,199.65,199.64,44.08901622]
[1759065116601,1e-08,199.65,199.64,58.32461023]
[1759065116901,1e-08,199.65,199.64,19.26461023]
[1759065117298,1e-08,199.65,199.64,58.32461023]
[1759065118004,1e-08,199.65,199.64,60.33299524]
[1759065118405,1e-08,199.65,199.64,21.27299524]
[1759065118595,1e-08,199.65,199.64,60.31299524]
[1759065119302,1e-08,199.65,199.64,21.27299524]
[1759065119603,1e-08,199.65,199.64,60.31299524]
[1759065119802,1e-08,199.65,199.64,21.27299524]
[1759065120206,1e-08,199.65,199.64,60.31299524]
[1759065121308,1e-08,199.65,199.64,47.27299524]
[1759065121604,1e-08,199.65,199.64,60.29299524]
[1759065121813,1e-08,199.65,199.64,47.27299524]
[1759065121990,119.92265406,199.8,199.68,39.59559401]
[1759065122185,119.92265406,199.79,199.7,13.59559401]
[1759065122587,119.92265406,199.79,199.71,44.02726052]
[1759065123306,119.92265406,199.79,199.71,5.00726052]
[1759065123504,119.92265406,199.79,199.73,5.00675912]
[1759065123706,119.92265406,199.79,199.74,39.02]
[1759065123913,119.92265406,199.79,199.73,5.00675912]
[1759065124098,119.92265406,199.79,199.74,39.0]
[1759065124301,119.92265406,199.79,199.75,39.0]
[1759065125111,119.92265406,199.79,199.76,39.0]
[1759065125313,119.92265406,199.79,199.77,39.0]
[1759065125687,119.92265406,199.79,199.78,39.0]
[1759065125886,119.92265406,199.79,199.76,5.00594838]
[1759065126116,119.92265406,199.79,199.77,39.0]
[1759065126321,119.92265406,199.79,199.76,5.00594838]
[1759065126793,119.92265406,199.79,199.77,43.98568716]
[1759065127895,119.92265406,199.79,199.77,5.00568716]
[1759065128100,119.92265406,199.79,199.77,43.98568716]
[1759065128911,119.92265406,199.79,199.74,5.00650846]
[1759065129122,119.92265406,199.79,199.75,38.98]
[1759065130107,119.92265406,199.79,199.75,43.98612026]
[1759065130291,119.92265406,199.79,199.75,5.00612026]
[1759065130492,119.92265406,199.79,199.76,38.96]
[1759065130899,119.92265406,199.79,199.77,38.96]
[1759065131813,26.0,199.83,199.77,38.96]
[1759065132012,26.0,199.83,199.78,38.94]
[1759065132336,26.0,199.83,199.79,38.94]
[1759065132494,26.0,199.83,199.62,4.09465877]
[1759065132495,31.00436117,199.83,199.68,26.0]
[1759065132702,119.92265406,199.82,199.69,52.53559401]
[1759065133098,26.0,199.79,199.69,52.53559401]
[1759065133500,26.0,199.79,199.69,13.59559401]
[1759065133719,26.0,199.79,199.7,38.94]
[1759065134229,31.00501252,199.8,199.7,38.94]
[1759065134521,43.92480101,199.81,199.69,44.60325803]
[1759065134728,5.00480101,199.81,199.7,38.92]
[1759065135932,26.0,199.77,199.68,5.00797851]
[1759065136294,26.0,199.77,199.69,38.92]
[1759065136492,26.0,199.77,199.68,5.00797851]
[1759065136804,26.0,199.77,199.69,38.92]
[1759065137531,26.0,199.76,199.66,26.0]
[1759065137812,145.92265406,199.76,199.63,13.59559401]
[1759065138014,145.92265406,199.76,199.64,38.9]
[1759065138213,150.92877083,199.76,199.64,5.00888059]
[1759065138517,189.84877083,199.76,199.65,38.9]
[1759065138719,38.9,199.75,199.63,18.60485845]
[1759065138911,150.92877083,199.76,199.61,13.59559401]
[1759065138912,26.0,199.73,199.61,13.59559401]
[1759065139115,26.0,199.73,199.62,38.9]
[1759065139421,26.0,199.72,199.59,39.14]
[1759065139622,64.9,199.72,199.59,39.14]
[1759065139798,26.0,199.72,199.6,38.9]
[1759065140207,5.00726052,199.71,199.59,44.15023409]
[1759065140406,5.00726052,199.71,199.57,39.69559401]
[1759065140808,26.0,199.68,199.57,13.69559401]
[1759065141002,26.0,199.68,199.58,38.9]
[1759065141419,26.0,199.67,199.58,38.9]
[1759065142199,26.0,199.68,199.58,43.91048924]
[1759065142418,26.0,199.67,199.58,43.91048924]
[1759065143227,26.0,199.67,199.58,38.9]
[1759065143618,26.0,199.67,199.57,0.1]
[1759065143934,26.0,199.68,199.57,42.27073974]
[1759065144133,64.9,199.68,199.57,42.27073974]
[1759065144521,64.9,199.68,199.58,38.9]
[1759065145024,64.9,199.68,199.57,5.11073974]
[1759065145334,64.9,199.68,199.59,38.9]
[1759065146719,69.90809849,199.68,199.57,0.1]
[1759065146914,31.00809849,199.68,199.57,0.1]
[1759065147135,26.0,199.64,199.57,0.1]
[1759065148020,26.0,199.64,199.57,5.11076281]
[1759065148223,64.92,199.67,199.57,5.11076281]
[1759065149114,119.92265406,199.7,199.58,0.72]
[1759065149620,184.82265406,199.7,199.58,37.46]
[1759065149928,184.82265406,199.7,199.59,0.72]
[1759065150127,184.82265406,199.7,199.6,5.01002004]
[1759065153518,145.92265406,199.7,199.6,56.43507014]
[1759065153831,119.92265406,199.69,199.6,17.53507014]
[1759065154056,119.92265406,199.69,199.61,38.88]
[1759065154220,119.92265406,199.69,199.6,43.89002004]
[1759065155408,119.92265406,199.69,199.62,5.00951808]
[1759065155606,119.92265406,199.68,199.62,5.00951808]
[1759065158033,119.92265406,199.68,199.58,0.72]
[1759065158232,145.92265406,199.67,199.57,0.1]
[1759065158437,184.78265406,199.67,199.57,5.11072027]
[1759065158935,145.92265406,199.67,199.57,5.11072027]
[1759065159134,184.78265406,199.67,199.57,5.11072027]
[1759065159337,184.78265406,199.67,199.58,0.72]
[1759065160039,119.92265406,199.66,199.58,5.73027177]
[1759065161939,119.92265406,199.66,199.58,5.01027177]
[1759065162743,119.92265406,199.65,199.57,0.1]
[1759065162926,158.78265406,199.65,199.57,0.1]
[1759065163232,26.0,199.61,199.57,0.1]
[1759065172031,26.0,199.6,199.57,0.1]
[1759065173551,26.0,199.61,199.57,0.78]
[1759065173845,26.0,199.61,199.57,0.1]
[1759065174531,119.92265406,199.6,199.57,0.1]
[1759065181745,119.92265406,199.6,199.58,0.68]
[1759065182547,119.92265406,199.6,199.57,0.1]
[1759065182751,119.92265406,199.6,199.57,0.78]
[1759065185161,119.92265406,199.6,199.57,0.1]
[1759065186659,119.92265406,199.59,199.57,0.1]
[1759065186848,158.70265406,199.59,199.57,0.1]
[1759065187356,119.92265406,199.59,199.57,0.1]
[1759065189147,124.93292716,199.59,199.57,0.1]
[1759065189345,163.69292716,199.59,199.57,0.1]
[1759065189730,189.69292716,199.59,199.57,0.1]
[1759065189934,119.92265406,199.58,199.57,0.1]
[1759065190744,158.68265406,199.58,199.57,0.1]
[1759065191173,5.01052209,199.58,199.57,0.1]
[1759065191346,43.75052209,199.58,199.57,0.1]
[1759065191867,5.01052209,199.58,199.57,0.1]
[1759065192064,48.76376786,199.58,199.57,0.1]
[1759065192266,10.02376786,199.58,199.57,0.1]
[1759065192444,48.76376786,199.58,199.57,0.1]
[1759065192868,10.02376786,199.58,199.57,0.1]
[1759065193071,48.76376786,199.58,199.57,0.1]
[1759065193234,62.35936187,199.58,199.57,0.1]
[1759065193694,23.61936187,199.58,199.57,0.1]
[1759065193958,48.76376786,199.58,199.57,0.1]
[1759065194469,43.75324577,199.58,199.57,0.1]
[1759065194961,26.0,199.59,199.57,0.1]
[1759065195166,38.74,199.58,199.57,0.1]
[1759065199259,79.8210607,199.59,199.57,0.1]
[1759065200051,84.83136441,199.59,199.57,0.1]
[1759065200254,69.75030371,199.59,199.57,0.1]
[1759065200465,31.01030371,199.59,199.57,0.1]
[1759065200668,5.01280953,199.58,199.57,0.1]
[1759065200866,43.75280953,199.58,199.57,0.1]
[1759065203768,48.76333162,199.58,199.57,0.1]
[1759065204382,10.02333162,199.58,199.57,0.1]
[1759065204558,23.61892563,199.58,199.57,0.1]
[1759065205168,62.35892563,199.58,199.57,0.1]
[1759065205753,23.61892563,199.58,199.57,0.1]
[1759065206053,62.35892563,199.58,199.57,0.1]
[1759065206955,23.61892563,199.58,199.57,0.1]
[1759065207671,62.35892563,199.58,199.57,0.1]
[1759065207973,23.61892563,199.58,199.57,0.1]
[1759065208172,62.35892563,199.58,199.57,0.1]
[1759065208364,23.61892563,199.58,199.57,0.1]
[1759065208557,62.35892563,199.58,199.57,0.1]
[1759065209978,5.01280953,199.58,199.57,0.76]
[1759065210172,43.75280953,199.58,199.57,0.76]
[1759065210677,43.75280953,199.58,199.57,0.1]
[1759065212269,43.75280953,199.58,199.57,0.76]
[1759065212876,43.75280953,199.58,199.57,0.1]
[1759065213280,10.02333162,199.58,199.57,0.1]
[1759065213464,48.76333162,199.58,199.57,0.1]
[1759065215086,23.61892563,199.58,199.57,0.1]
[1759065215264,82.35892563,199.58,199.57,0.1]
[1759065215578,43.61892563,199.58,199.57,0.1]
[1759065215776,82.35892563,199.58,199.57,0.1]
[1759065216168,85.70732725,199.58,199.57,0.1]
[1759065217585,65.70732725,199.58,199.57,0.1]
[1759065217784,85.70732725,199.58,199.57,0.1]
[1759065220170,65.70732725,199.58,199.57,0.1]
[1759065220377,85.70732725,199.58,199.57,0.1]
[1759065221496,65.70732725,199.58,199.57,0.1]
[1759065221698,85.70732725,199.58,199.57,0.1]
[1759065222086,65.70732725,199.58,199.57,0.1]
[1759065222290,85.70732725,199.58,199.57,0.1]
[1759065222969,85.70732725,199.58,199.57,0.76]
[1759065223180,26.96732725,199.58,199.57,0.76]
[1759065223386,65.70732725,199.58,199.57,0.76]
[1759065224092,52.11173324,199.58,199.57,0.76]
[1759065224869,48.76333162,199.58,199.57,0.76]
[1759065225676,52.1110341,199.58,199.57,0.76]
[1759065225879,48.76333162,199.58,199.57,0.76]
[1759065227181,10.02333162,199.58,199.57,0.76]
[1759065227381,48.76333162,199.58,199.57,0.76]
[1759065229287,52.11445674,199.58,199.57,0.76]
[1759065230294,13.37445674,199.58,199.57,0.76]
[1759065230497,48.76333162,199.58,199.57,0.76]
[1759065230697,52.11445674,199.58,199.57,0.76]
[1759065233095,13.37445674,199.58,199.57,0.1]
[1759065233302,10.02333162,199.58,199.57,0.1]
[1759065233481,48.76333162,199.58,199.57,0.81]
[1759065233681,52.11445674,199.58,199.57,0.81]
[1759065234602,52.11445674,199.58,199.57,0.1]
[1759065237293,13.37445674,199.58,199.57,0.1]
[1759065237494,52.11445674,199.58,199.57,0.1]
[1759065239905,52.11445674,199.58,199.57,0.81]
[1759065240798,47.10393465,199.58,199.57,0.81]
[1759065241885,42.09112512,199.58,199.57,0.81]
[1759065242087,38.74,199.58,199.57,0.81]
[1759065242516,42.09112512,199.58,199.57,0.81]
[1759065243214,3.35112512,199.58,199.57,0.81]
[1759065243522,38.74,199.58,199.57,0.81]
[1759065245008,31.01032655,199.59,199.57,0.81]
[1759065245313,54.63165362,199.58,199.57,0.81]
[1759065247818,54.63161755,199.58,199.57,0.81]
[1759065250113,15.89161755,199.58,199.57,0.81]
[1759065250310,29.35765054,199.61,199.57,0.81]